fUSD/lending_fUSD_20250322
["ID","MTS","AMOUNT","RATE_DAILY","PERIOD"]
[356532162,1742626240587,-1007.4,0.00046849,120]
[356532163,1742626240597,-500.0,0.00046849,120]
[356532164,1742626240607,-500.0,0.00046849,120]
[356532165,1742626240617,-500.0,0.00046849,120]
[356532166,1742626240626,-500.0,0.00046849,120]
[356532167,1742626240636,-500.0,0.00046849,120]
[356532168,1742626240646,-500.0,0.00046849,120]
[356532169,1742626240656,-500.0,0.00046849,120]
[356532170,1742626240666,-500.0,0.00046849,120]
[356532171,1742626240675,-982.65,0.00046849,120]
[356532172,1742626240685,-500.0,0.00046849,120]
[356532173,1742626240695,-705.49,0.00046849,120]
[356532174,1742626240764,-500.0,0.00046849,120]
[356532175,1742626240774,-599.35,0.00046849,120]
[356532176,1742626240784,-500.0,0.00046849,120]
[356532177,1742626240793,-500.0,0.00046849,120]
[356532178,1742626240803,-602.18906668,0.00046849,60]
[356532179,1742626240812,-500.0,0.00046849,120]
[356532180,1742626240822,-500.0,0.00046849,120]
[356532181,1742626240832,-890.92,0.00046849,120]
[356532182,1742626240842,-500.0,0.00046849,2]
[356532183,1742626240851,-500.0,0.00046849,120]
[356532184,1742626240860,-500.0,0.00046849,120]
[356532185,1742626240869,-601.43,0.00046849,120]
[356532186,1742626240878,-500.0,0.00046849,120]
[356532187,1742626240887,-500.0,0.00046849,120]
[356532188,1742626240897,-644.72,0.00046849,120]
[356532189,1742626240906,-506.69,0.00046849,120]
[356532190,1742626240916,-500.0,0.00046849,120]
[356532191,1742626240925,-500.0,0.00046849,120]
[356532192,1742626240934,-500.0,0.00046849,120]
[356532193,1742626240943,-1304.01,0.00046849,120]
[356532194,1742626240953,-500.0,0.00046849,120]
[356532195,1742626240962,-500.0,0.00046849,120]
[356532196,1742626240971,-500.0,0.00046849,120]
[356532197,1742626240982,-783.11,0.00046849,120]
[356532198,1742626240992,-500.0,0.00046849,120]
[356532199,1742626241002,-500.0,0.00046849,120]
[356532200,1742626241012,-796.03,0.00046849,120]
[356532201,1742626241020,-642.84,0.00046849,120]
[356532202,1742626241029,-500.0,0.00046849,120]
[356532203,1742626241039,-500.0,0.00046849,120]
[356532204,1742626241048,-809.69,0.00046849,2]
[356532205,1742626241057,-597.94,0.00046849,120]
[356532206,1742626241068,-790.41,0.00046849,120]
[356532207,1742626241077,-862.06,0.00046849,120]
[356532208,1742626241087,-500.0,0.00046849,120]
[356532209,1742626241096,-2007.99,0.00046849,120]
[356532210,1742626241106,-500.0,0.00046849,120]
[356532211,1742626241115,-500.0,0.00046849,120]
[356532212,1742626241124,-500.0,0.00046849,120]
[356532213,1742626241134,-944.75,0.00046849,120]
[356532214,1742626241144,-683.11,0.00046849,120]
[356532215,1742626241153,-707.3,0.00046849,120]
[356532216,1742626241163,-500.0,0.00046849,120]
[356532217,1742626241174,-500.0,0.00046849,120]
[356532218,1742626241183,-500.0,0.00046849,120]
[356532219,1742626241193,-500.0,0.00046849,120]
[356532220,1742626241202,-500.0,0.00046849,120]
[356532221,1742626241211,-500.0,0.00046849,120]
[356532222,1742626241221,-2157.88,0.00046849,120]
[356532223,1742626241231,-500.0,0.00046849,120]
[356532224,1742626241240,-500.0,0.00046849,120]
[356532225,1742626241249,-915.67,0.00046849,120]
[356532226,1742626241258,-659.98,0.00046849,120]
[356532227,1742626241267,-500.0,0.00046849,120]
[356532228,1742626241277,-500.0,0.00046849,120]
[356532229,1742626241287,-1002.14,0.00046849,120]
[356532230,1742626241296,-500.0,0.00046849,120]
[356532231,1742626241305,-500.0,0.00046849,120]
[356532232,1742626241315,-592.46,0.00046849,120]
[356532233,1742626241325,-829.99,0.00046849,120]
[356532234,1742626241334,-500.0,0.00046849,120]
[356532235,1742626241344,-1609.93,0.00046849,120]
[356532236,1742626241353,-500.0,0.00046849,120]
[356532237,1742626241362,-500.0,0.00046849,120]
[356532238,1742626241372,-500.0,0.00046849,120]
[356532239,1742626241381,-500.0,0.00046849,120]
[356532240,1742626241390,-500.0,0.00046849,120]
[356532241,1742626241400,-500.0,0.00046849,120]
[356532242,1742626241409,-2062.88,0.00046849,120]
[356532243,1742626241419,-649.91,0.00046849,120]
[356532244,1742626241429,-689.21,0.00046849,120]
[356532245,1742626241439,-500.0,0.00046849,120]
[356532246,1742626241448,-500.0,0.00046849,120]
[356532247,1742626241457,-500.0,0.00046849,120]
[356532248,1742626241470,-1066.09,0.00046849,120]
[356532249,1742626241480,-500.0,0.00046849,120]
[356532250,1742626241490,-500.0,0.00046849,120]
[356532251,1742626241498,-500.0,0.00046849,120]
[356532252,1742626241509,-500.0,0.00046849,120]
[356532253,1742626241518,-500.0,0.00046849,120]
[356532254,1742626241527,-500.0,0.00046849,120]
[356532255,1742626241536,-500.0,0.00046849,120]
[356532256,1742626241546,-500.0,0.00046849,120]
[356532257,1742626241555,-768.08,0.00046849,120]
[356532258,1742626241564,-500.0,0.00046849,120]
[356532259,1742626241573,-1456.11,0.00046849,7]
[356532260,1742626241583,-500.0,0.00046849,120]
[356532261,1742626241592,-500.0,0.00046849,30]
[356532262,1742626241601,-500.0,0.00046849,120]
[356532263,1742626241611,-500.0,0.00046849,120]
[356532264,1742626241620,-500.0,0.00046849,120]
[356532265,1742626241629,-2043.78,0.00046849,120]
[356532266,1742626241639,-500.0,0.00046849,120]
[356532267,1742626241648,-500.0,0.00046849,120]
[356532268,1742626241658,-891.4,0.00046849,120]
[356532269,1742626241667,-544.26,0.00046849,120]
[356532270,1742626241677,-925.91,0.00046849,120]
[356532271,1742626241686,-500.0,0.00046849,120]
[356532272,1742626241695,-709.45,0.00046849,120]
[356532273,1742626241704,-333.80874504,0.00046849,120]
[356532274,1742626241714,-500.0,0.00046849,120]
[356532275,1742626241723,-500.0,0.00046849,120]
[356532276,1742626241732,-500.0,0.00046849,120]
[356532277,1742626241741,-304.44322904,0.00046849,30]
[356532278,1742626241750,-500.0,0.00046849,120]
[356532279,1742626241759,-500.0,0.00046849,120]
[356532280,1742626241768,-2642.39,0.00046849,120]
[356532281,1742626241777,-1007.67,0.00046849,120]
[356532282,1742626241786,-500.0,0.00046849,120]
[356532283,1742626241796,-500.0,0.00046849,120]
[356532284,1742626241805,-529.12471169,0.00046849,120]
[356532285,1742626241815,-1064.89,0.00046849,120]
[356532286,1742626241824,-942.27,0.00046849,120]
[356532287,1742626241835,-1160.32,0.00046849,120]
[356532288,1742626241844,-280.22633833,0.00046849,120]
[356532289,1742626241852,-500.0,0.00046849,120]
[356532290,1742626241861,-577.51,0.00046849,120]
[356532291,1742626241870,-644.77,0.00046849,120]
[356532292,1742626241880,-1075.51,0.00046849,120]
[356532293,1742626241889,-561.88,0.00046849,120]
[356532294,1742626241898,-540.28467806,0.00046849,120]
[356532295,1742626241907,-569.56,0.00046849,120]
[356532296,1742626241916,-500.0,0.00046849,120]
[356532297,1742626241925,-500.0,0.00046849,120]
[356532298,1742626241934,-500.0,0.00046849,120]
[356532299,1742626241943,-500.0,0.00046849,120]
[356532300,1742626241952,-190.74947773,0.00046849,120]
[356532301,1742626241961,-895.61,0.00046849,120]
[356532302,1742626241970,-500.0,0.00046849,120]
[356532303,1742626241980,-865.66,0.00046849,120]
[356532304,1742626241989,-500.0,0.00046849,120]
[356532305,1742626241998,-500.0,0.00046849,120]
[356532306,1742626242008,-791.21,0.00046849,120]
[356532307,1742626242017,-500.0,0.00046849,120]
[356532308,1742626242026,-500.0,0.00046849,120]
[356532309,1742626242035,-500.0,0.00046849,120]
[356532310,1742626242044,-553.43,0.00046849,120]
[356532311,1742626242053,-547.28885496,0.00046849,120]
[356532312,1742626242062,-539.86,0.00046849,120]
[356532313,1742626242071,-151.0,0.00046849,14]
[356532314,1742626242080,-151.0,0.00046849,14]
[356532315,1742626242089,-151.0,0.00046849,14]
[356532316,1742626242098,-151.0,0.00046849,14]
[356532317,1742626242108,-956.04,0.00046849,120]
[356532318,1742626242116,-500.0,0.00046849,120]
[356532319,1742626242126,-500.0,0.00046849,120]
[356532320,1742626242135,-512.96,0.00046849,120]
[356532321,1742626242144,-1315.43,0.00046849,120]
[356532322,1742626242153,-500.0,0.00046849,120]
[356532323,1742626242162,-803.02,0.00046849,120]
[356532324,1742626242171,-761.27,0.00046849,120]
[356532325,1742626242181,-500.0,0.00046849,120]
[356532326,1742626242190,-500.0,0.00046849,120]
[356532327,1742626242199,-500.0,0.00046849,120]
[356532328,1742626242208,-673.38,0.00046849,120]
[356532329,1742626242217,-633.1141971,0.00046849,120]
[356532330,1742626242226,-500.0,0.00046849,120]
[356532331,1742626242235,-500.0,0.00046849,120]
[356532332,1742626242244,-500.0,0.00046849,120]
[356532333,1742626242253,-1377.7,0.00046849,120]
[356532334,1742626242263,-500.0,0.00046849,120]
[356532335,1742626242271,-806.3,0.00046849,120]
[356532336,1742626242281,-500.0,0.00046849,120]
[356532337,1742626242290,-500.0,0.00046849,120]
[356532338,1742626242299,-649.60477471,0.00046849,120]
[356532339,1742626242310,-500.0,0.00046849,120]
[356532340,1742626242319,-905.82,0.00046849,120]
[356532341,1742626242328,-567.9,0.00046849,120]
[356532342,1742626242337,-500.0,0.00046849,120]
[356532343,1742626242346,-578.97,0.00046849,120]
[356532345,1742626242356,-941.3,0.00046849,120]
[356532347,1742626242365,-412.29,0.00046849,120]
[356532348,1742626242374,-818.81,0.00046849,120]
[356532350,1742626242383,-1806.21,0.00046849,120]
[356532352,1742626242392,-501.78901378,0.00046849,120]
[356532353,1742626242401,-1303.14,0.00046849,120]
[356532354,1742626242410,-927.86,0.00046849,120]
[356532355,1742626242419,-1230.55,0.00046849,120]
[356532356,1742626242428,-500.0,0.00046849,120]
[356532357,1742626242438,-566.51,0.00046849,120]
[356532358,1742626242448,-500.0,0.00046849,120]
[356532359,1742626242457,-739.99,0.00046849,120]
[356532360,1742626242468,-580.4,0.00046849,120]
[356532361,1742626242478,-525.85,0.00046849,120]
[356532362,1742626242487,-597.48,0.00046849,120]
[356532363,1742626242496,-691.75,0.00046849,120]
[356532364,1742626242505,-724.1,0.00046849,120]
[356532365,1742626242515,-1395.14,0.00046849,120]
[356532367,1742626242524,-500.0,0.00046849,120]
[356532369,1742626242533,-500.0,0.00046849,120]
[356532370,1742626242542,-500.0,0.00046849,120]
[356532371,1742626242551,-500.0,0.00046849,120]
[356532372,1742626242560,-586.86,0.00046849,120]
[356532373,1742626242569,-1459.19,0.00046849,120]
[356532374,1742626242578,-827.07,0.00046849,120]
[356532375,1742626242587,-530.55,0.00046849,120]
[356532376,1742626242596,-1091.46,0.00046849,120]
[356532377,1742626242605,-942.81,0.00046849,120]
[356532378,1742626242615,-500.0,0.00046849,120]
[356532379,1742626242624,-951.85,0.00046849,120]
[356532380,1742626242633,-500.0,0.00046849,120]
[356532381,1742626242642,-500.0,0.00046849,120]
[356532382,1742626242652,-602.72,0.00046849,120]
[356532383,1742626242661,-500.0,0.00046849,120]
[356532384,1742626242670,-791.43,0.00046849,120]
[356532385,1742626242679,-814.76,0.00046849,120]
[356532386,1742626242689,-741.88,0.00046849,120]
[356532387,1742626242698,-500.0,0.00046849,120]
[356532388,1742626242708,-500.0,0.00046849,120]
[356532389,1742626242717,-852.76,0.00046849,120]
[356532390,1742626242727,-500.0,0.00046849,120]
[356532391,1742626242736,-681.19,0.00046849,120]
[356532392,1742626242746,-500.0,0.00046849,120]
[356532393,1742626242755,-500.0,0.00046849,120]
[356532394,1742626242764,-500.0,0.00046849,120]
[356532395,1742626242773,-585.55,0.00046849,120]
[356532396,1742626242783,-2877.74,0.00046849,120]
[356532397,1742626242792,-500.0,0.00046849,120]
[356532398,1742626242801,-628.71,0.00046849,120]
[356532399,1742626242811,-871.63,0.00046849,120]
[356532400,1742626242821,-500.0,0.00046849,120]
[356532401,1742626242831,-500.0,0.00046849,120]
[356532402,1742626242840,-500.0,0.00046849,120]
[356532403,1742626242849,-500.0,0.00046849,120]
[356532404,1742626242858,-500.0,0.00046849,120]
[356532405,1742626242868,-500.0,0.00046849,120]
[356532406,1742626242878,-1785.63,0.00046849,120]
[356532407,1742626242887,-544.95293588,0.00046849,120]
[356532408,1742626242897,-646.05,0.00046849,120]
[356532409,1742626242906,-1144.59,0.00046849,120]
[356532410,1742626242916,-520.15066335,0.00046849,120]
[356532411,1742626242926,-898.45,0.00046849,120]
[356532412,1742626242936,-500.0,0.00046849,120]
[356532413,1742626242946,-500.0,0.00046849,120]
[356532414,1742626242956,-1837.12,0.00046849,120]
[356532415,1742626242965,-500.0,0.00046849,120]
[356532416,1742626242975,-831.07,0.00046849,120]
[356532417,1742626242984,-500.0,0.00046849,120]
[356532418,1742626242993,-567.43,0.00046849,120]
[356532419,1742626243003,-946.77,0.00046849,120]
[356532420,1742626243013,-672.77,0.00046849,120]
[356532421,1742626243023,-1108.78,0.00046849,120]
[356532422,1742626243032,-500.0,0.00046849,120]
[356532424,1742626243041,-500.0,0.00046849,120]
[356532426,1742626243051,-915.57,0.00046849,120]
[356532428,1742626243061,-1580.21,0.00046849,10]
[356532430,1742626243071,-1929.09,0.00046849,120]
[356532432,1742626243080,-1274.84,0.00046849,120]
[356532433,1742626243089,-1302.39,0.00046849,120]
[356532434,1742626243099,-500.0,0.00046849,120]
[356532435,1742626243108,-516.75,0.00046849,120]
[356532436,1742626243117,-500.0,0.00046849,120]
[356532437,1742626243126,-756.12,0.00046849,120]
[356532438,1742626243136,-2463.8,0.00046849,120]
[356532439,1742626243145,-1847.18,0.00046849,120]
[356532440,1742626243154,-596.26,0.00046849,120]
[356532441,1742626243163,-500.0,0.00046849,120]
[356532442,1742626243172,-591.70655715,0.00046849,120]
[356532443,1742626243182,-500.0,0.00046849,120]
[356532444,1742626243191,-500.0,0.00046849,120]
[356532446,1742626243201,-2004.22,0.00046849,120]
[356532448,1742626243210,-1280.4,0.00046849,120]
[356532450,1742626243220,-1157.37,0.00046849,120]
[356532452,1742626243230,-1598.42,0.00046849,120]
[356532454,1742626243239,-966.21,0.00046849,120]
[356532456,1742626243249,-500.0,0.00046849,120]
[356532458,1742626243258,-500.0,0.00046849,120]
[356532459,1742626243267,-1868.63,0.00046849,120]
[356532460,1742626243277,-563.81,0.00046849,120]
[356532461,1742626243286,-500.0,0.00046849,120]
[356532462,1742626243296,-1115.54,0.00046849,120]
[356532463,1742626243305,-500.0,0.00046849,120]
[356532464,1742626243315,-500.0,0.00046849,120]
[356532465,1742626243324,-500.0,0.00046849,120]
[356532466,1742626243333,-500.0,0.00046849,120]
[356532467,1742626243343,-1406.1,0.00046849,120]
[356532468,1742626243352,-769.48,0.00046849,120]
[356532469,1742626243361,-530.37,0.00046849,120]
[356532470,1742626243371,-893.66,0.00046849,120]
[356532471,1742626243382,-694.47,0.00046849,120]
[356532472,1742626243392,-805.66,0.00046849,120]
[356532473,1742626243401,-656.72,0.00046849,120]
[356532474,1742626243411,-534.53,0.00046849,120]
[356532475,1742626243421,-500.0,0.00046849,120]
[356532476,1742626243431,-559.24628263,0.00046849,30]
[356532477,1742626243440,-906.62,0.00046849,120]
[356532478,1742626243450,-500.0,0.00046849,120]
[356532479,1742626243459,-500.0,0.00046849,120]
[356532480,1742626243473,-1000.0,0.00046849,120]
[356532481,1742626243483,-1224.27,0.00046849,120]
[356532482,1742626243492,-500.0,0.00046849,120]
[356532483,1742626243501,-880.17,0.00046849,120]
[356532484,1742626243510,-500.0,0.00046849,120]
[356532485,1742626243520,-2070.0,0.00046849,120]
[356532486,1742626243529,-418.3036681,0.00046849,120]
[356532487,1742626243539,-649.77,0.00046849,120]
[356532488,1742626243548,-500.0,0.00046849,120]
[356532489,1742626243559,-500.0,0.00046849,120]
[356532490,1742626243568,-777.1,0.00046849,120]
[356532491,1742626243577,-500.0,0.00046849,120]
[356532492,1742626243587,-569.12,0.00046849,120]
[356532493,1742626243596,-500.0,0.00046849,120]
[356532494,1742626243606,-1098.25,0.00046849,120]
[356532495,1742626243615,-151.0,0.00046849,14]
[356532496,1742626243625,-299.857019,0.00046849,14]
[356532497,1742626243634,-500.0,0.00046849,120]
[356532498,1742626243643,-500.0,0.00046849,120]
[356532499,1742626243653,-566.63,0.00046849,120]
[356532500,1742626243662,-911.39,0.00046849,120]
[356532501,1742626243671,-500.0,0.00046849,120]
[356532502,1742626243681,-516.09,0.00046849,120]
[356532503,1742626243691,-659.59,0.00046849,120]
[356532504,1742626243700,-316.82,0.00046849,120]
[356532505,1742626243710,-500.0,0.00046849,120]
[356532506,1742626243718,-1024.65,0.00046849,120]
[356532507,1742626243728,-500.0,0.00046849,120]
[356532508,1742626243738,-836.61,0.00046849,120]
[356532509,1742626243748,-850.98,0.00046849,120]
[356532510,1742626243757,-500.0,0.00046849,120]
[356532511,1742626243767,-1340.73,0.00046849,120]
[356532512,1742626243776,-742.19,0.00046849,120]
[356532513,1742626243785,-500.0,0.00046849,120]
[356532514,1742626243795,-500.0,0.00046849,120]
[356532515,1742626243805,-631.74281576,0.00046849,120]
[356532516,1742626243814,-501.45,0.00046849,120]
[356532517,1742626243824,-1485.53,0.00046849,120]
[356532518,1742626243834,-516.61,0.00046849,120]
[356532519,1742626243843,-1662.57,0.00046849,120]
[356532520,1742626243853,-500.0,0.00046849,120]
[356532521,1742626243863,-500.0,0.00046849,120]
[356532522,1742626243872,-500.0,0.00046849,120]
[356532523,1742626243882,-1126.29,0.00046849,120]
[356532524,1742626243891,-500.0,0.00046849,120]
[356532525,1742626243901,-1189.39,0.00046849,120]
[356532526,1742626243911,-500.0,0.00046849,120]
[356532527,1742626243920,-517.7,0.00046849,120]
[356532528,1742626243930,-947.31,0.00046849,120]
[356532529,1742626243939,-500.0,0.00046849,120]
[356532530,1742626243949,-500.0,0.00046849,120]
[356532531,1742626243959,-516.86,0.00046849,120]
[356532532,1742626243969,-500.0,0.00046849,120]
[356532533,1742626243978,-1201.61,0.00046849,120]
[356532534,1742626243988,-500.0,0.00046849,120]
[356532535,1742626243997,-500.0,0.00046849,120]
[356532536,1742626244008,-609.99,0.00046849,120]
[356532537,1742626244018,-613.45,0.00046849,120]
[356532538,1742626244027,-500.0,0.00046849,120]
[356532539,1742626244037,-582.4,0.00046849,120]
[356532540,1742626244046,-513.23845077,0.00046849,120]
[356532541,1742626244056,-500.0,0.00046849,120]
[356532542,1742626244065,-500.0,0.00046849,120]
[356532543,1742626244074,-500.0,0.00046849,120]
[356532544,1742626244084,-30624.5,0.00046849,120]
[356532545,1742626244094,-858.09,0.00046849,120]
[356532546,1742626244103,-889.0,0.00046849,120]
[356532547,1742626244113,-500.0,0.00046849,120]
[356532548,1742626244123,-820.75,0.00046849,120]
[356532549,1742626244133,-559.88,0.00046849,120]
[356532550,1742626244143,-897.87,0.00046849,120]
[356532551,1742626244152,-633.11,0.00046849,120]
[356532552,1742626244162,-500.0,0.00046849,120]
[356532553,1742626244171,-500.0,0.00046849,120]
[356532554,1742626244181,-854.22,0.00046849,120]
[356532555,1742626244192,-500.0,0.00046849,120]
[356532556,1742626244202,-500.0,0.00046849,120]
[356532557,1742626244211,-646.85,0.00046849,120]
[356532558,1742626244221,-561.38,0.00046849,120]
[356532559,1742626244231,-834.05,0.00046849,120]
[356532560,1742626244241,-500.0,0.00046849,120]
[356532561,1742626244251,-550.03,0.00046849,120]
[356532562,1742626244260,-1148.55,0.00046849,120]
[356532563,1742626244270,-500.0,0.00046849,120]
[356532564,1742626244280,-721.24,0.00046849,120]
[356532565,1742626244289,-603.48,0.00046849,120]
[356532566,1742626244299,-5563.21,0.00046849,2]
[356532567,1742626244308,-2833.94,0.00046849,120]
[356532568,1742626244318,-500.0,0.00046849,120]
[356532569,1742626244328,-873.02,0.00046849,120]
[356532570,1742626244338,-500.0,0.00046849,120]
[356532571,1742626244348,-501.63,0.00046849,120]
[356532572,1742626244358,-520.47,0.00046849,120]
[356532573,1742626244367,-1358.0,0.00046849,120]
[356532574,1742626244376,-1322.76,0.00046849,120]
[356532575,1742626244387,-824.63,0.00046849,120]
[356532576,1742626244398,-2044.02,0.00046849,120]
[356532577,1742626244407,-661.76,0.00046849,120]
[356532578,1742626244417,-955.66,0.00046849,120]
[356532579,1742626244428,-511.74,0.00046849,120]
[356532580,1742626244437,-500.0,0.00046849,120]
[356532581,1742626244446,-1421.9,0.00046849,120]
[356532582,1742626244456,-500.0,0.00046849,120]
[356532583,1742626244467,-1788.03,0.00046849,120]
[356532584,1742626244478,-500.0,0.00046849,120]
[356532585,1742626244488,-500.0,0.00046849,120]
[356532586,1742626244498,-518.93,0.00046849,120]
[356532587,1742626244508,-1265.68,0.00046849,120]
[356532588,1742626244519,-566.57,0.00046849,120]
[356532589,1742626244528,-500.0,0.00046849,120]
[356532590,1742626244537,-2517.65,0.00046849,120]
[356532591,1742626244548,-839.72,0.00046849,120]
[356532592,1742626244558,-500.0,0.00046849,120]
[356532593,1742626244568,-500.0,0.00046849,120]
[356532594,1742626244578,-1125.59,0.00046849,120]
[356532595,1742626244588,-500.0,0.00046849,120]
[356532596,1742626244598,-500.0,0.00046849,120]
[356532597,1742626244607,-500.0,0.00046849,120]
[356532598,1742626244617,-1127.81,0.00046849,120]
[356532599,1742626244627,-500.0,0.00046849,120]
[356532600,1742626244637,-1830.71,0.00046849,120]
[356532601,1742626244646,-2827.56,0.00046849,120]
[356532602,1742626244656,-1026.99,0.00046849,120]
[356532603,1742626244666,-1103.01,0.00046849,120]
[356532604,1742626244676,-500.0,0.00046849,120]
[356532605,1742626244685,-2392.76,0.00046849,120]
[356532606,1742626244695,-267.8,0.00046849,7]
[356532607,1742626244705,-500.0,0.00046849,120]
[356532608,1742626244714,-882.33,0.00046849,120]
[356532609,1742626244724,-500.0,0.00046849,120]
[356532610,1742626244734,-3500.0,0.00046849,10]
[356532611,1742626244744,-500.0,0.00046849,120]
[356532612,1742626244753,-155.77642171,0.00046849,120]
[356532613,1742626244763,-500.0,0.00046849,120]
[356532614,1742626244773,-1434.31,0.00046849,120]
[356532615,1742626244783,-500.0,0.00046849,120]
[356532616,1742626244792,-726.55,0.00046849,120]
[356532617,1742626244802,-500.0,0.00046849,120]
[356532618,1742626244811,-500.0,0.00046849,120]
[356532619,1742626244821,-500.0,0.00046849,120]
[356532620,1742626244834,-530.66,0.00046849,120]
[356532621,1742626244844,-734.04,0.00046849,120]
[356532622,1742626244853,-4390.95,0.00046849,120]
[356532623,1742626244863,-1467.65,0.00046849,120]
[356532624,1742626244872,-1438.86,0.00046849,120]
[356532625,1742626244882,-1687.71,0.00046849,120]
[356532626,1742626244892,-917.36,0.00046849,120]
[356532627,1742626244902,-500.0,0.00046849,120]
[356532628,1742626244911,-500.0,0.00046849,120]
[356532629,1742626244921,-826.28,0.00046849,120]
[356532630,1742626244930,-500.0,0.00046849,120]
[356532631,1742626244941,-1035.96,0.00046849,120]
[356532632,1742626244951,-500.0,0.00046849,120]
[356532633,1742626244961,-627.28,0.00046849,120]
[356532634,1742626244971,-2053.68,0.00046849,120]
[356532635,1742626244980,-1472.14,0.00046849,120]
[356532636,1742626244991,-780.56,0.00046849,120]
[356532637,1742626245000,-500.0,0.00046849,120]
[356532638,1742626245010,-2543.35,0.00046849,120]
[356532639,1742626245019,-500.0,0.00046849,120]
[356532640,1742626245029,-789.63,0.00046849,120]
[356532641,1742626245040,-6824.6,0.00046849,120]
[356532642,1742626245051,-500.0,0.00046849,120]
[356532643,1742626245061,-2243.45,0.00046849,120]
[356532644,1742626245071,-6583.38,0.00046849,120]
[356532645,1742626245081,-764.13,0.00046849,120]
[356532646,1742626245091,-1188.13,0.00046849,120]
[356532647,1742626245100,-1586.61,0.00046849,120]
[356532648,1742626245110,-500.0,0.00046849,120]
[356532649,1742626245120,-500.0,0.00046849,120]
[356532650,1742626245130,-619.72,0.00046849,120]
[356532651,1742626245140,-652.85,0.00046849,120]
[356532652,1742626245149,-1061.74,0.00046849,120]
[356532653,1742626245159,-500.0,0.00046849,120]
[356532654,1742626245168,-500.0,0.00046849,120]
[356532655,1742626245178,-1220.55,0.00046849,120]
[356532656,1742626245189,-500.0,0.00046849,30]
[356532657,1742626245198,-2607.01,0.00046849,100]
[356532658,1742626245208,-685.79,0.00046849,120]
[356532659,1742626245217,-1778.77,0.00046849,120]
[356532660,1742626245227,-511.56,0.00046849,120]
[356532661,1742626245236,-510.97,0.00046849,120]
[356532662,1742626245246,-1322.34,0.00046849,120]
[356532663,1742626245255,-500.0,0.00046849,120]
[356532664,1742626245264,-816.62,0.00046849,120]
[356532665,1742626245274,-653.35,0.00046849,120]
[356532666,1742626245283,-1101.39,0.00046849,120]
[356532667,1742626245293,-838.12,0.00046849,120]
[356532668,1742626245302,-574.68,0.00046849,120]
[356532669,1742626245312,-738.14,0.00046849,120]
[356532670,1742626245321,-1289.39,0.00046849,120]
[356532671,1742626245331,-2046.66,0.00046849,120]
[356532672,1742626245340,-1213.04,0.00046849,120]
[356532673,1742626245350,-1000.0,0.00046849,120]
[356532674,1742626245359,-940.06,0.00046849,120]
[356532675,1742626245369,-500.0,0.00046849,120]
[356532676,1742626245378,-500.0,0.00046849,120]
[356532677,1742626245388,-536.51647088,0.00046849,120]
[356532678,1742626245397,-1148.51,0.00046849,120]
[356532679,1742626245407,-500.0,0.00046849,120]